[Event "*** Titled Tuesday Blitz"]
[Site "Chess.com"]
[Date "2019.03.05"]
[Round "8"]
[White "Shant_Sargsyan"]
[Black "Witik"]
[Result "0-1"]
[WhiteElo "2899"]
[BlackElo "2696"]
[TimeControl "180+2"]
[EndTime "14:57:24 PST"]
[Termination "Witik won by resignation"]

1. e4 {[%clk 0:03:01.6]} 1... c6 {[%clk 0:03:01]} 2. d4 {[%clk 0:03:02.2]} 2...
d5 {[%clk 0:03:01.5]} 3. Nd2 {[%clk 0:03:04.1]} 3... dxe4 {[%clk 0:03:02.5]} 4.
Nxe4 {[%clk 0:03:06]} 4... Bf5 {[%clk 0:03:04.1]} 5. Ng3 {[%clk 0:03:07.3]} 5...
Bg6 {[%clk 0:03:05.7]} 6. h4 {[%clk 0:03:08.8]} 6... h6 {[%clk 0:03:07]} 7. Nf3
{[%clk 0:03:10.3]} 7... e6 {[%clk 0:03:08.4]} 8. Ne5 {[%clk 0:03:11.4]} 8... Bh7
{[%clk 0:03:09.5]} 9. f4 {[%clk 0:03:12.1]} 9... Be7 {[%clk 0:03:03.9]} 10. Nh5
{[%clk 0:03:01.4]} 10... Bxh4+ {[%clk 0:02:53.9]} 11. g3 {[%clk 0:03:02.9]}
11... Bf6 {[%clk 0:02:51.6]} 12. c3 {[%clk 0:03:03.6]} 12... Nd7 {[%clk
0:02:38.9]} 13. Bg2 {[%clk 0:02:59.8]} 13... Ne7 {[%clk 0:02:17.3]} 14. Qb3
{[%clk 0:02:54.2]} 14... Qb6 {[%clk 0:02:09.6]} 15. Qa3 {[%clk 0:02:41.6]} 15...
Nd5 {[%clk 0:01:11.3]} 16. Nc4 {[%clk 0:02:22.3]} 16... Qa6 {[%clk 0:00:59.5]}
17. Qxa6 {[%clk 0:02:20.3]} 17... bxa6 {[%clk 0:01:00.2]} 18. Ne5 {[%clk
0:02:22.2]} 18... Rc8 {[%clk 0:00:55]} 19. Bd2 {[%clk 0:02:21.1]} 19... c5
{[%clk 0:00:47.7]} 20. Nxd7 {[%clk 0:02:08.9]} 20... Kxd7 {[%clk 0:00:48.5]} 21.
Bxd5 {[%clk 0:02:10.8]} 21... exd5 {[%clk 0:00:49.7]} 22. Nxf6+ {[%clk
0:02:12.7]} 22... gxf6 {[%clk 0:00:51.2]} 23. Be3 {[%clk 0:02:14.6]} 23... Be4
{[%clk 0:00:46.4]} 24. Rh3 {[%clk 0:02:12.2]} 24... c4 {[%clk 0:00:47.1]} 25.
O-O-O {[%clk 0:02:02.9]} 25... h5 {[%clk 0:00:42.1]} 26. Rh4 {[%clk 0:01:59.2]}
26... Bf3 {[%clk 0:00:38.8]} 27. Rf1 {[%clk 0:01:58.5]} 27... Bg4 {[%clk
0:00:38]} 28. Re1 {[%clk 0:01:48.5]} 28... Rhe8 {[%clk 0:00:38]} 29. Rhh1 {[%clk
0:01:48.7]} 29... Re4 {[%clk 0:00:37]} 30. Bf2 {[%clk 0:01:49.1]} 30... f5
{[%clk 0:00:37.9]} 31. Rxe4 {[%clk 0:01:46.8]} 31... fxe4 {[%clk 0:00:38.2]} 32.
Kd2 {[%clk 0:01:48.6]} 32... Rb8 {[%clk 0:00:39.2]} 33. Rb1 {[%clk 0:01:49.6]}
33... e3+ {[%clk 0:00:36.3]} 34. Bxe3 {[%clk 0:01:32]} 34... Bf5 {[%clk
0:00:37.1]} 35. Rg1 {[%clk 0:01:16.8]} 35... Rxb2+ {[%clk 0:00:37.6]} 36. Ke1
{[%clk 0:01:17.7]} 36... Rxa2 {[%clk 0:00:38.2]} 37. Bd2 {[%clk 0:01:15.4]}
37... Ra1+ {[%clk 0:00:35.6]} 38. Kf2 {[%clk 0:01:16.4]} 38... Rxg1 {[%clk
0:00:37]} 39. Kxg1 {[%clk 0:01:18.3]} 39... Kc6 {[%clk 0:00:37]} 40. Kf2 {[%clk
0:01:19.3]} 40... Kb5 {[%clk 0:00:38.2]} 41. Ke1 {[%clk 0:01:15]} 41... Ka4
{[%clk 0:00:39.4]} 42. Kd1 {[%clk 0:01:16.5]} 42... Kb3 {[%clk 0:00:40.7]} 43.
Kc1 {[%clk 0:01:18]} 43... a5 {[%clk 0:00:40.2]} 0-1

[Event "*** Titled Tuesday Blitz"]
[Site "Chess.com"]
[Date "2019.03.05"]
[Round "8"]
[White "wanyaland"]
[Black "Karina_Oparina"]
[Result "1-0"]
[WhiteElo "2144"]
[BlackElo "2172"]
[TimeControl "180+2"]
[EndTime "14:57:30 PST"]
[Termination "wanyaland won on time"]

1. d4 {[%clk 0:03:01.9]} 1... Nf6 {[%clk 0:02:58.7]} 2. c4 {[%clk 0:03:02.6]}
2... e6 {[%clk 0:02:59]} 3. Nc3 {[%clk 0:03:02.8]} 3... Bb4 {[%clk 0:02:58.3]}
4. f3 {[%clk 0:03:04.1]} 4... c5 {[%clk 0:02:58]} 5. a3 {[%clk 0:03:04.1]} 5...
Bxc3+ {[%clk 0:02:57]} 6. bxc3 {[%clk 0:03:05]} 6... b6 {[%clk 0:02:56]} 7. e4
{[%clk 0:03:04.4]} 7... d6 {[%clk 0:02:56]} 8. Bd3 {[%clk 0:03:05.3]} 8... e5
{[%clk 0:02:56.6]} 9. Ne2 {[%clk 0:03:05.9]} 9... O-O {[%clk 0:02:56.7]} 10. O-O
{[%clk 0:03:06.7]} 10... Nc6 {[%clk 0:02:55.7]} 11. Be3 {[%clk 0:03:06.3]} 11...
Ne7 {[%clk 0:02:47.4]} 12. g4 {[%clk 0:03:02.8]} 12... Ne8 {[%clk 0:02:43.3]}
13. Ng3 {[%clk 0:03:02.9]} 13... f6 {[%clk 0:02:35.5]} 14. f4 {[%clk 0:03:03.3]}
14... Qd7 {[%clk 0:02:23.7]} 15. h3 {[%clk 0:03:02.7]} 15... Nc7 {[%clk
0:02:13.2]} 16. Kh2 {[%clk 0:03:02.7]} 16... exf4 {[%clk 0:02:13.3]} 17. Bxf4
{[%clk 0:03:02.3]} 17... Ne6 {[%clk 0:02:14.2]} 18. Be3 {[%clk 0:03:03]} 18...
Qc7 {[%clk 0:02:08.5]} 19. Kg1 {[%clk 0:02:59.7]} 19... d5 {[%clk 0:02:04.8]}
20. Qe1 {[%clk 0:02:50.4]} 20... dxe4 {[%clk 0:02:01.3]} 21. Nxe4 {[%clk
0:02:46.6]} 21... Bb7 {[%clk 0:01:55.4]} 22. d5 {[%clk 0:02:47]} 22... Qd7
{[%clk 0:01:46.8]} 23. Rd1 {[%clk 0:02:42.3]} 23... Nd8 {[%clk 0:01:46]} 24. Bb1
{[%clk 0:02:40.6]} 24... Nf7 {[%clk 0:01:44.7]} 25. Qg3 {[%clk 0:02:38.4]} 25...
Ng6 {[%clk 0:01:41.1]} 26. Rxf6 {[%clk 0:02:36]} 26... Nfe5 {[%clk 0:01:37.4]}
27. Re6 {[%clk 0:02:29.8]} 27... Rf3 {[%clk 0:01:30.9]} 28. Qe1 {[%clk 0:02:24]}
28... Nxc4 {[%clk 0:01:23.7]} 29. Bc1 {[%clk 0:02:24]} 29... Bxd5 {[%clk
0:01:16.4]} 30. Ng5 {[%clk 0:02:22.5]} 30... Rf6 {[%clk 0:00:50.6]} 31. Bxg6
{[%clk 0:01:53.6]} 31... Rxe6 {[%clk 0:00:23.5]} 32. Bxh7+ {[%clk 0:01:53.2]}
32... Kh8 {[%clk 0:00:20.7]} 33. Nxe6 {[%clk 0:01:14.4]} 33... Qxe6 {[%clk
0:00:18.6]} 34. Qh4 {[%clk 0:01:13.2]} 34... Qf6 {[%clk 0:00:09.7]} 35. Bg5
{[%clk 0:01:05.8]} 35... Qxc3 {[%clk 0:00:03.5]} 36. Bg6+ {[%clk 0:01:01.2]}
36... Kg8 {[%clk 0:00:03.6]} 37. Rxd5 {[%clk 0:00:57.8]} 1-0

[Event "*** Titled Tuesday Blitz"]
[Site "Chess.com"]
[Date "2019.03.05"]
[Round "8"]
[White "MatBobula"]
[Black "andy_rekt"]
[Result "0-1"]
[WhiteElo "2260"]
[BlackElo "2239"]
[TimeControl "180+2"]
[EndTime "14:57:36 PST"]
[Termination "andy_rekt won by resignation"]

1. d4 {[%clk 0:03:01.9]} 1... Nf6 {[%clk 0:03:00.5]} 2. c4 {[%clk 0:03:01.9]}
2... g6 {[%clk 0:03:01.1]} 3. Nf3 {[%clk 0:03:02.7]} 3... Bg7 {[%clk 0:02:59.2]}
4. g3 {[%clk 0:03:03.3]} 4... O-O {[%clk 0:02:58]} 5. Bg2 {[%clk 0:03:04.4]}
5... d5 {[%clk 0:02:56.7]} 6. cxd5 {[%clk 0:03:04.5]} 6... Nxd5 {[%clk
0:02:57.7]} 7. O-O {[%clk 0:03:05]} 7... Nb6 {[%clk 0:02:54.8]} 8. Nc3 {[%clk
0:02:57.8]} 8... Nc6 {[%clk 0:02:55.1]} 9. e3 {[%clk 0:02:58.5]} 9... a5 {[%clk
0:02:55]} 10. b3 {[%clk 0:02:52.6]} 10... a4 {[%clk 0:02:49.9]} 11. Nxa4 {[%clk
0:02:42.1]} 11... Nxa4 {[%clk 0:02:49.7]} 12. bxa4 {[%clk 0:02:43.9]} 12... e5
{[%clk 0:02:50.7]} 13. Ba3 {[%clk 0:02:25.3]} 13... Re8 {[%clk 0:02:45.1]} 14.
Nxe5 {[%clk 0:02:13.2]} 14... Nxe5 {[%clk 0:02:44.7]} 15. dxe5 {[%clk
0:02:12.9]} 15... Bxe5 {[%clk 0:02:45.5]} 16. Qxd8 {[%clk 0:02:05.9]} 16... Rxd8
{[%clk 0:02:45.5]} 17. Rad1 {[%clk 0:02:04.9]} 17... Rxd1 {[%clk 0:02:45.9]} 18.
Rxd1 {[%clk 0:02:05.2]} 18... Bg4 {[%clk 0:02:42.1]} 19. f3 {[%clk 0:01:55]}
19... Be6 {[%clk 0:02:41.2]} 20. f4 {[%clk 0:01:53.2]} 20... Bf6 {[%clk
0:02:18.3]} 21. Bxb7 {[%clk 0:01:03.9]} 21... Rxa4 {[%clk 0:02:16.7]} 22. Bc5
{[%clk 0:01:02.8]} 22... Rxa2 {[%clk 0:02:14.3]} 23. e4 {[%clk 0:00:53.4]} 23...
Rc2 {[%clk 0:02:07.9]} 24. Bf2 {[%clk 0:00:50.8]} 24... Bg4 {[%clk 0:01:56.2]}
25. Rb1 {[%clk 0:00:46.6]} 25... Bc3 {[%clk 0:01:51.5]} 26. e5 {[%clk
0:00:40.6]} 26... Bf5 {[%clk 0:01:44.4]} 27. Rd1 {[%clk 0:00:22.9]} 27... h5
{[%clk 0:01:45.4]} 28. Bd5 {[%clk 0:00:22.2]} 28... Bb4 {[%clk 0:01:32.6]} 29.
Bd4 {[%clk 0:00:19.2]} 29... c5 {[%clk 0:01:32.1]} 30. Bf2 {[%clk 0:00:19.9]}
30... c4 {[%clk 0:01:32.4]} 31. Rd4 {[%clk 0:00:16.8]} 31... Bd3 {[%clk
0:01:26.2]} 32. Kg2 {[%clk 0:00:08.8]} 32... Bc5 {[%clk 0:01:18]} 33. Bxf7+
{[%clk 0:00:07.8]} 33... Kg7 {[%clk 0:01:14.1]} 34. Rd7 {[%clk 0:00:08.4]} 34...
Rxf2+ {[%clk 0:01:11.3]} 35. Kh1 {[%clk 0:00:07.1]} 35... Be4+ {[%clk 0:01:05]}
36. Kg1 {[%clk 0:00:07.2]} 36... Rd2+ {[%clk 0:00:46]} 0-1

[Event "*** Titled Tuesday Blitz"]
[Site "Chess.com"]
[Date "2019.03.05"]
[Round "8"]
[White "Pechen_Yeltsina"]
[Black "martinmartinez95"]
[Result "1-0"]
[WhiteElo "2649"]
[BlackElo "2469"]
[TimeControl "180+2"]
[EndTime "14:57:40 PST"]
[Termination "Pechen_Yeltsina won by resignation"]

1. e4 {[%clk 0:03:01.9]} 1... c5 {[%clk 0:02:58.9]} 2. Nf3 {[%clk 0:03:01.8]}
2... d6 {[%clk 0:02:59.9]} 3. g3 {[%clk 0:03:02.7]} 3... Nf6 {[%clk 0:03:00.2]}
4. d3 {[%clk 0:03:03.5]} 4... g6 {[%clk 0:02:59.9]} 5. Bg2 {[%clk 0:03:05]} 5...
Bg7 {[%clk 0:03:01.4]} 6. O-O {[%clk 0:03:06.6]} 6... O-O {[%clk 0:03:02.4]} 7.
Re1 {[%clk 0:03:08.2]} 7... Nc6 {[%clk 0:03:03.5]} 8. c3 {[%clk 0:03:09.6]} 8...
Rb8 {[%clk 0:03:04.6]} 9. h3 {[%clk 0:03:10.7]} 9... b5 {[%clk 0:03:05.3]} 10.
d4 {[%clk 0:03:12.2]} 10... Nd7 {[%clk 0:02:59.8]} 11. Bf4 {[%clk 0:02:52.5]}
11... b4 {[%clk 0:02:57.9]} 12. e5 {[%clk 0:02:44.8]} 12... bxc3 {[%clk
0:02:55.9]} 13. bxc3 {[%clk 0:02:46.2]} 13... dxe5 {[%clk 0:02:52.8]} 14. dxe5
{[%clk 0:02:45.4]} 14... e6 {[%clk 0:02:43.8]} 15. Qd6 {[%clk 0:02:40.8]} 15...
Rb6 {[%clk 0:02:41]} 16. Bg5 {[%clk 0:02:25.9]} 16... Ncxe5 {[%clk 0:01:50.4]}
17. Bxd8 {[%clk 0:02:25.9]} 17... Nxf3+ {[%clk 0:01:44.1]} 18. Bxf3 {[%clk
0:02:27.8]} 18... Rxd6 {[%clk 0:01:45]} 19. Be7 {[%clk 0:02:29.4]} 19... Rd3
{[%clk 0:01:35.1]} 20. Bxf8 {[%clk 0:02:30]} 20... Kxf8 {[%clk 0:01:28.1]} 21.
Be4 {[%clk 0:02:25.6]} 21... Rxc3 {[%clk 0:01:27.4]} 22. Nxc3 {[%clk 0:02:24.7]}
22... Bxc3 {[%clk 0:01:28.4]} 23. Rac1 {[%clk 0:02:25.8]} 23... Bxe1 {[%clk
0:01:29.4]} 24. Rxe1 {[%clk 0:02:27.7]} 24... Ke7 {[%clk 0:01:26.9]} 25. f4
{[%clk 0:02:28]} 25... Nb6 {[%clk 0:01:22.6]} 26. Kf2 {[%clk 0:02:27.4]} 26...
Ba6 {[%clk 0:01:21.5]} 27. Rc1 {[%clk 0:02:20.5]} 27... Kd6 {[%clk 0:01:21.5]}
28. h4 {[%clk 0:02:20.3]} 28... Bc4 {[%clk 0:01:21.5]} 29. Rc2 {[%clk
0:02:19.9]} 29... Bd5 {[%clk 0:01:22]} 30. Bxd5 {[%clk 0:02:16.8]} 30... exd5
{[%clk 0:01:22.8]} 31. Re2 {[%clk 0:02:18.1]} 31... c4 {[%clk 0:01:14.2]} 32.
Ke3 {[%clk 0:02:15.1]} 32... Kc5 {[%clk 0:01:14.7]} 33. Kd2 {[%clk 0:02:15.6]}
33... d4 {[%clk 0:01:13]} 34. Re5+ {[%clk 0:02:06.8]} 34... Nd5 {[%clk
0:01:13.6]} 35. a3 {[%clk 0:02:08.3]} 35... a5 {[%clk 0:01:12.6]} 36. h5 {[%clk
0:02:04.7]} 36... gxh5 {[%clk 0:01:03.5]} 37. Rxh5 {[%clk 0:02:06.6]} 37... d3
{[%clk 0:01:04.7]} 38. f5 {[%clk 0:02:00.7]} 38... Nf6 {[%clk 0:00:55.3]} 39.
Rh4 {[%clk 0:02:01.4]} 39... Kd5 {[%clk 0:00:53.8]} 40. Ke3 {[%clk 0:02:02.9]}
40... a4 {[%clk 0:00:50.4]} 41. Rd4+ {[%clk 0:02:03]} 41... Kc5 {[%clk
0:00:51.5]} 42. Rd8 {[%clk 0:01:53.5]} 42... Nd5+ {[%clk 0:00:40.2]} 43. Ke4
{[%clk 0:01:54.1]} 43... Nc3+ {[%clk 0:00:41.1]} 44. Ke5 {[%clk 0:01:50]} 44...
f6+ {[%clk 0:00:40]} 45. Kxf6 {[%clk 0:01:48.3]} 45... d2 {[%clk 0:00:39.7]} 46.
Ke5 {[%clk 0:01:39.2]} 46... Ne4 {[%clk 0:00:15]} 47. Kxe4 {[%clk 0:01:32.6]}
47... c3 {[%clk 0:00:16]} 48. Ke3 {[%clk 0:01:33.8]} 48... Kc4 {[%clk
0:00:16.5]} 49. f6 {[%clk 0:01:31]} 49... Kb3 {[%clk 0:00:17.6]} 50. f7 {[%clk
0:01:32.4]} 50... Kxa3 {[%clk 0:00:14.3]} 51. f8=Q+ {[%clk 0:01:33]} 51... Kb2
{[%clk 0:00:16.2]} 1-0

[Event "*** Titled Tuesday Blitz"]
[Site "Chess.com"]
[Date "2019.03.05"]
[Round "8"]
[White "PaulfromSPb"]
[Black "GMMatamoros"]
[Result "1-0"]
[WhiteElo "2623"]
[BlackElo "2527"]
[TimeControl "180+2"]
[EndTime "14:57:42 PST"]
[Termination "PaulfromSPb won on time"]

1. d4 {[%clk 0:03:01.9]} 1... e6 {[%clk 0:02:58.5]} 2. Bf4 {[%clk 0:02:57]} 2...
c5 {[%clk 0:02:57.9]} 3. c3 {[%clk 0:02:57.6]} 3... d5 {[%clk 0:02:52.4]} 4. e3
{[%clk 0:02:58.4]} 4... Nc6 {[%clk 0:02:52.8]} 5. Nd2 {[%clk 0:02:58.6]} 5...
Nf6 {[%clk 0:02:51.1]} 6. Ngf3 {[%clk 0:02:57.5]} 6... Bd6 {[%clk 0:02:51.7]} 7.
Bg3 {[%clk 0:02:58.2]} 7... O-O {[%clk 0:02:52.2]} 8. Bd3 {[%clk 0:02:58.5]}
8... b6 {[%clk 0:02:51.9]} 9. Qe2 {[%clk 0:02:59]} 9... Bb7 {[%clk 0:02:44.9]}
10. Rd1 {[%clk 0:02:59.2]} 10... Re8 {[%clk 0:02:45]} 11. Ne5 {[%clk 0:02:44.6]}
11... Qc7 {[%clk 0:02:36.9]} 12. f4 {[%clk 0:02:44.4]} 12... Ne7 {[%clk
0:02:37.8]} 13. Bh4 {[%clk 0:02:41.1]} 13... Ne4 {[%clk 0:02:35.6]} 14. Bxe7
{[%clk 0:02:38.8]} 14... Bxe7 {[%clk 0:02:28]} 15. Nxe4 {[%clk 0:02:33.1]} 15...
dxe4 {[%clk 0:02:28.9]} 16. Bc4 {[%clk 0:02:28.1]} 16... cxd4 {[%clk 0:02:06.9]}
17. exd4 {[%clk 0:02:22.1]} 17... Bd5 {[%clk 0:02:07.2]} 18. Bxd5 {[%clk
0:02:13.3]} 18... exd5 {[%clk 0:02:09.1]} 19. O-O {[%clk 0:02:12.1]} 19... Bd6
{[%clk 0:01:12.2]} 20. Qb5 {[%clk 0:02:11.9]} 20... Qb7 {[%clk 0:01:10.3]} 21.
Ng4 {[%clk 0:02:11.6]} 21... a6 {[%clk 0:01:10.5]} 22. Qb3 {[%clk 0:02:11.3]}
22... Bf8 {[%clk 0:01:07.4]} 23. Ne3 {[%clk 0:02:09.2]} 23... Rad8 {[%clk
0:01:08.2]} 24. a4 {[%clk 0:02:08.8]} 24... Qc6 {[%clk 0:01:08.5]} 25. f5 {[%clk
0:02:07.2]} 25... Be7 {[%clk 0:01:08.2]} 26. Rde1 {[%clk 0:02:01.2]} 26... Bg5
{[%clk 0:01:08.5]} 27. f6 {[%clk 0:01:54.2]} 27... Bxf6 {[%clk 0:00:45.8]} 28.
Rf5 {[%clk 0:01:54.4]} 28... g6 {[%clk 0:00:47]} 29. Rxd5 {[%clk 0:01:52]} 29...
Qe6 {[%clk 0:00:48.1]} 30. Rxd8 {[%clk 0:01:46.6]} 30... Qxb3 {[%clk 0:00:41.7]}
31. Rxe8+ {[%clk 0:01:46.6]} 31... Kg7 {[%clk 0:00:43.6]} 32. Re2 {[%clk
0:01:46.6]} 32... Qxa4 {[%clk 0:00:37.6]} 33. Rxe4 {[%clk 0:01:46.7]} 33... Bg5
{[%clk 0:00:38.8]} 34. Kf2 {[%clk 0:01:36.5]} 34... b5 {[%clk 0:00:39.3]} 35. h4
{[%clk 0:01:33.6]} 35... Bh6 {[%clk 0:00:34.1]} 36. Ng4 {[%clk 0:01:33]} 36...
Bc1 {[%clk 0:00:34.8]} 37. Re7 {[%clk 0:01:27.9]} 37... Qd1 {[%clk 0:00:15.1]}
38. Ne5 {[%clk 0:01:25.6]} 38... Qh1 {[%clk 0:00:08.8]} 39. Rxf7+ {[%clk
0:01:19.5]} 39... Kg8 {[%clk 0:00:09.1]} 40. Re4 {[%clk 0:01:18.5]} 40... Bxb2
{[%clk 0:00:05.8]} 41. Rf3 {[%clk 0:01:17.2]} 41... Qd1 {[%clk 0:00:02.2]} 42.
Ng4 {[%clk 0:01:08]} 1-0

[Event "*** Titled Tuesday Blitz"]
[Site "Chess.com"]
[Date "2019.03.05"]
[Round "8"]
[White "Gentlejimmy7"]
[Black "MishkaFighter"]
[Result "1/2-1/2"]
[WhiteElo "2410"]
[BlackElo "2356"]
[TimeControl "180+2"]
[EndTime "14:57:45 PST"]
[Termination "Game drawn by agreement"]

1. d4 {[%clk 0:03:01.9]} 1... Nf6 {[%clk 0:03:00.9]} 2. Nf3 {[%clk 0:03:02.5]}
2... g6 {[%clk 0:03:01.5]} 3. g3 {[%clk 0:03:03.9]} 3... Bg7 {[%clk 0:03:02.7]}
4. Bg2 {[%clk 0:03:05.6]} 4... O-O {[%clk 0:03:03.2]} 5. O-O {[%clk 0:03:07.2]}
5... d5 {[%clk 0:03:04.3]} 6. c4 {[%clk 0:03:06.3]} 6... c6 {[%clk 0:03:04.9]}
7. Nbd2 {[%clk 0:03:03.3]} 7... Bf5 {[%clk 0:03:03.4]} 8. b3 {[%clk 0:03:04.4]}
8... a5 {[%clk 0:03:02.6]} 9. a3 {[%clk 0:03:04.6]} 9... Nbd7 {[%clk 0:03:01.4]}
10. Bb2 {[%clk 0:03:05.2]} 10... Ne4 {[%clk 0:02:54.6]} 11. e3 {[%clk
0:03:05.6]} 11... Re8 {[%clk 0:02:52.4]} 12. Qe2 {[%clk 0:03:04.2]} 12... Qb6
{[%clk 0:02:51.7]} 13. Rfd1 {[%clk 0:02:48.6]} 13... Bg4 {[%clk 0:02:36.8]} 14.
h3 {[%clk 0:02:44.4]} 14... Bxf3 {[%clk 0:02:31.8]} 15. Bxf3 {[%clk 0:02:45.8]}
15... Nxd2 {[%clk 0:02:32.9]} 16. Rxd2 {[%clk 0:02:47]} 16... Qxb3 {[%clk
0:02:29.8]} 17. cxd5 {[%clk 0:02:45.9]} 17... cxd5 {[%clk 0:02:31.7]} 18. Rd3
{[%clk 0:02:35.9]} 18... Qb5 {[%clk 0:02:23.7]} 19. a4 {[%clk 0:02:36.6]} 19...
Qc6 {[%clk 0:02:24.9]} 20. Rc3 {[%clk 0:02:31.2]} 20... Qe6 {[%clk 0:02:13.1]}
21. Rc7 {[%clk 0:02:28.4]} 21... Nf6 {[%clk 0:02:13.7]} 22. Kg2 {[%clk
0:02:22.9]} 22... Rab8 {[%clk 0:01:54.6]} 23. Qb5 {[%clk 0:02:21.9]} 23... b6
{[%clk 0:01:44.9]} 24. Rac1 {[%clk 0:02:17.6]} 24... h5 {[%clk 0:01:40.5]} 25.
R1c6 {[%clk 0:02:16.3]} 25... Qf5 {[%clk 0:01:41.1]} 26. Rxb6 {[%clk 0:02:17.1]}
26... Rxb6 {[%clk 0:01:31.7]} 27. Qxb6 {[%clk 0:02:18.3]} 27... g5 {[%clk
0:01:33.6]} 28. g4 {[%clk 0:01:58.4]} 28... hxg4 {[%clk 0:01:32.3]} 29. hxg4
{[%clk 0:02:00]} 29... Nxg4 {[%clk 0:01:28.3]} 30. Qc6 {[%clk 0:02:00.8]} 30...
Nf6 {[%clk 0:01:25.5]} 31. Qc2 {[%clk 0:01:55.9]} 31... Qe6 {[%clk 0:01:19.7]}
32. Rc6 {[%clk 0:01:56.2]} 32... Qd7 {[%clk 0:01:18.8]} 33. Rc7 {[%clk
0:01:57.6]} 33... Qe6 {[%clk 0:01:16.8]} 34. Rc6 {[%clk 0:01:58.7]} 34... Qd7
{[%clk 0:01:18]} 35. Rc7 {[%clk 0:02:00.1]} 35... Qd6 {[%clk 0:01:11.7]} 36. Qc5
{[%clk 0:01:55.1]} 36... g4 {[%clk 0:01:10.3]} 37. Be2 {[%clk 0:01:54.2]} 37...
Qe6 {[%clk 0:01:10.7]} 38. Qc2 {[%clk 0:01:50.7]} 38... Ne4 {[%clk 0:01:11.5]}
39. Qc6 {[%clk 0:01:46.1]} 39... Nd6 {[%clk 0:00:48]} 40. Ba3 {[%clk 0:01:36.6]}
40... Rb8 {[%clk 0:00:40.5]} 41. Bxd6 {[%clk 0:01:22.2]} 41... exd6 {[%clk
0:00:42.4]} 42. Qd7 {[%clk 0:01:00]} 1/2-1/2

[Event "*** Titled Tuesday Blitz"]
[Site "Chess.com"]
[Date "2019.03.05"]
[Round "8"]
[White "severomorskij"]
[Black "wonderfultime"]
[Result "0-1"]
[WhiteElo "2708"]
[BlackElo "2909"]
[TimeControl "180+2"]
[EndTime "14:57:53 PST"]
[Termination "wonderfultime won on time"]

1. d4 {[%clk 0:02:56.9]} 1... Nf6 {[%clk 0:02:54.1]} 2. Bg5 {[%clk 0:02:51.8]}
2... e6 {[%clk 0:02:54.6]} 3. e4 {[%clk 0:02:52.3]} 3... h6 {[%clk 0:02:55.5]}
4. Bxf6 {[%clk 0:02:53.4]} 4... Qxf6 {[%clk 0:02:57.4]} 5. c3 {[%clk 0:02:54.6]}
5... d6 {[%clk 0:02:55.2]} 6. Bd3 {[%clk 0:02:55.5]} 6... g6 {[%clk 0:02:56.1]}
7. Ne2 {[%clk 0:02:56.7]} 7... Bg7 {[%clk 0:02:57.6]} 8. O-O {[%clk 0:02:57.8]}
8... O-O {[%clk 0:02:53]} 9. f4 {[%clk 0:02:58.8]} 9... Nd7 {[%clk 0:02:53.9]}
10. Nd2 {[%clk 0:02:59.8]} 10... a6 {[%clk 0:02:51.7]} 11. Nf3 {[%clk
0:02:56.1]} 11... b6 {[%clk 0:02:53.1]} 12. e5 {[%clk 0:02:55.2]} 12... Qe7
{[%clk 0:02:53.5]} 13. Be4 {[%clk 0:02:56.3]} 13... Rb8 {[%clk 0:02:54.4]} 14.
g4 {[%clk 0:02:49.9]} 14... Rd8 {[%clk 0:02:50]} 15. Qe1 {[%clk 0:02:44]} 15...
c5 {[%clk 0:02:42.7]} 16. Ng3 {[%clk 0:02:43.1]} 16... cxd4 {[%clk 0:02:39.2]}
17. cxd4 {[%clk 0:02:43.6]} 17... dxe5 {[%clk 0:02:40.7]} 18. fxe5 {[%clk
0:02:36.5]} 18... b5 {[%clk 0:02:37.9]} 19. h4 {[%clk 0:02:26.7]} 19... Nb6
{[%clk 0:02:36]} 20. h5 {[%clk 0:02:25.6]} 20... g5 {[%clk 0:02:35.9]} 21. Rc1
{[%clk 0:02:13.5]} 21... Bb7 {[%clk 0:02:36.3]} 22. Bxb7 {[%clk 0:02:10.3]}
22... Rxb7 {[%clk 0:02:38.2]} 23. Ne4 {[%clk 0:02:07]} 23... Nd5 {[%clk
0:02:30.2]} 24. Kh2 {[%clk 0:01:51.9]} 24... Rc7 {[%clk 0:02:18.5]} 25. Qf2
{[%clk 0:01:36.8]} 25... Rdc8 {[%clk 0:02:01.8]} 26. Qd2 {[%clk 0:01:27.9]}
26... Qb4 {[%clk 0:01:47.1]} 27. Qxb4 {[%clk 0:01:26.3]} 27... Nxb4 {[%clk
0:01:49]} 28. Rxc7 {[%clk 0:01:17.6]} 28... Rxc7 {[%clk 0:01:50.9]} 29. Nc5
{[%clk 0:01:03.5]} 29... Nxa2 {[%clk 0:01:34.5]} 30. Ra1 {[%clk 0:00:58.7]}
30... Nb4 {[%clk 0:01:35.3]} 31. Kg3 {[%clk 0:00:32.5]} 31... Nc2 {[%clk
0:01:30.9]} 32. Rxa6 {[%clk 0:00:06.4]} 32... Nxd4 {[%clk 0:01:31.8]} 33. Ra8+
{[%clk 0:00:07.3]} 33... Kh7 {[%clk 0:01:33]} 34. Nd3 {[%clk 0:00:06.5]} 34...
Rd7 {[%clk 0:01:22]} 35. Nde1 {[%clk 0:00:07.3]} 35... Nc6 {[%clk 0:01:19.4]}
36. Ra6 {[%clk 0:00:07.7]} 36... Nxe5 {[%clk 0:01:20.4]} 37. Ra5 {[%clk
0:00:09]} 37... Rb7 {[%clk 0:01:10.5]} 38. b3 {[%clk 0:00:09]} 38... Nc6 {[%clk
0:01:06.4]} 39. Ra6 {[%clk 0:00:09.7]} 39... Nb4 {[%clk 0:01:07.8]} 40. Ra8
{[%clk 0:00:10.4]} 40... Nd5 {[%clk 0:00:59]} 41. Nd3 {[%clk 0:00:09.1]} 41...
Rc7 {[%clk 0:00:59.5]} 42. Nde5 {[%clk 0:00:10.3]} 42... Nf4 {[%clk 0:00:58.6]}
43. Rb8 {[%clk 0:00:06.1]} 43... Rc2 {[%clk 0:00:57.1]} 0-1